fUST/lending_fUST_20240928
["ID","MTS","AMOUNT","RATE_DAILY","PERIOD"]
[339346480,1727457046292,-501.83840042,0.00019178,2]
[339346481,1727457046302,-502.65573626,0.00019178,2]
[339346482,1727457046312,-187.847115,0.00019178,2]
[339346483,1727457046322,-506.72316098,0.00019178,2]
[339346484,1727457046331,-187.847115,0.00019178,2]
[339346485,1727457046339,-638.69610085,0.00019178,2]
[339346486,1727457046349,-187.847115,0.00019178,2]
[339346487,1727457046358,-500.0,0.00019178,2]
[339346488,1727457046367,-552.67060331,0.00019178,2]
[339346489,1727457046376,-187.847115,0.00019178,2]
[339346490,1727457046386,-187.847115,0.00019178,2]
[339346491,1727457046395,-187.847113,0.00019178,2]
[339346492,1727457046405,-500.0,0.00019178,2]
[339346493,1727457046415,-500.0,0.00019178,2]
[339346494,1727457046426,-506.94099607,0.00019178,2]
[339346495,1727457046437,-657.03,0.00019178,2]
[339346496,1727457046446,-500.0,0.00019178,2]
[339346497,1727457046456,-500.0,0.00019178,2]
[339346498,1727457046465,-500.0,0.00019178,2]
[339346499,1727457046476,-151.0,0.00019178,2]
[339346500,1727457046485,-151.65858076,0.00019178,2]
[339346501,1727457046495,-500.0,0.00019178,2]
[339346502,1727457046503,-514.90413926,0.00019178,2]
[339346503,1727457046513,-508.20380946,0.00019178,2]
[339346505,1727457046523,-500.0,0.00019178,2]
[339346506,1727457046532,-841.15,0.00019178,2]
[339346508,1727457046541,-500.0,0.00019178,2]
[339346509,1727457046550,-500.0,0.00019178,2]
[339346511,1727457046561,-500.0,0.00019178,2]
[339346513,1727457046575,-500.0,0.00019178,2]
[339346515,1727457046585,-500.0,0.00019178,2]
[339346517,1727457046594,-500.0,0.00019178,2]
[339346519,1727457046605,-500.0,0.00019178,2]
[339346521,1727457046616,-500.0,0.00019178,2]
[339346523,1727457046626,-500.0,0.00019178,2]
[339346525,1727457046636,-500.0,0.00019178,2]
[339346528,1727457046648,-500.0,0.00019178,2]
[339346530,1727457046659,-500.0,0.00019178,2]
[339346532,1727457046668,-500.0,0.00019178,2]
[339346534,1727457046679,-500.0,0.00019178,2]
[339346536,1727457046688,-500.0,0.00019178,2]
[339346538,1727457046698,-500.0,0.00019178,2]
[339346540,1727457046707,-500.0,0.00019178,2]
[339346542,1727457046716,-500.0,0.00019178,2]
[339346544,1727457046725,-504.77009013,0.00019178,2]
[339346546,1727457046734,-506.82329208,0.00019178,2]
[339346548,1727457046745,-500.0,0.00019178,2]
[339346550,1727457046754,-500.0,0.00019178,2]
[339346552,1727457046763,-512.44586229,0.00019178,2]
[339346554,1727457046773,-500.0,0.00019178,2]
[339346556,1727457046783,-509.92699727,0.00019178,2]
[339346558,1727457046793,-781.017403,0.00019178,2]
[339346560,1727457046802,-781.017403,0.00019178,2]
[339346562,1727457046812,-184.14457095,0.00019178,2]
[339346564,1727457046821,-781.017403,0.00019178,2]
[339346566,1727457046830,-558.34457907,0.00019178,2]
[339346568,1727457046839,-781.017403,0.00019178,2]
[339346570,1727457046849,-781.017403,0.00019178,2]
[339346572,1727457046858,-781.01740437,0.00019178,2]
[339346574,1727457046867,-500.0,0.00019178,2]
[339346576,1727457046876,-563.693894,0.00019178,2]
[339346578,1727457046886,-563.693894,0.00019178,2]
[339346580,1727457046895,-563.693894,0.00019178,2]
[339346582,1727457046904,-533.73141373,0.00019178,2]
[339346584,1727457046913,-151.0,0.00019178,2]
[339346586,1727457046922,-151.0,0.00019178,2]
[339346588,1727457046931,-757.089979,0.00019178,2]
[339346590,1727457046940,-151.0,0.00019178,2]
[339346592,1727457046950,-757.089979,0.00019178,2]
[339346594,1727457046959,-757.089979,0.00019178,2]
[339346596,1727457046968,-563.693894,0.00019178,2]
[339346598,1727457046977,-720.84,0.00019178,2]
[339346600,1727457046987,-563.693894,0.00019178,2]
[339346602,1727457046997,-151.0,0.00019178,2]
[339346604,1727457047007,-563.693886,0.00019178,2]
[339346607,1727457047018,-151.0,0.00019178,2]
[339346609,1727457047028,-502.18747852,0.00019178,2]
[339346611,1727457047039,-256.193153,0.00019178,2]
[339346613,1727457047050,-757.089979,0.00019178,2]
[339346615,1727457047061,-757.089979,0.00019178,2]
[339346617,1727457047070,-757.08997874,0.00019178,2]
[339346619,1727457047080,-3329.380208,0.00019178,2]
[339346621,1727457047089,-3329.380208,0.00019178,2]
[339346623,1727457047099,-3329.380208,0.00019178,2]
[339346625,1727457047108,-500.0,0.00019178,2]
[339346627,1727457047117,-535.78,0.00019178,2]
[339346629,1727457047126,-502.60955855,0.00019178,2]
[339346631,1727457047135,-3329.380208,0.00019178,2]
[339346633,1727457047144,-500.0,0.00019178,2]
[339346635,1727457047153,-3329.380208,0.00019178,2]
[339346637,1727457047162,-522.0485193,0.00019178,2]
[339346639,1727457047171,-3329.380215,0.00019178,2]
[339346640,1727457047181,-500.0,0.00019178,2]
[339346642,1727457047190,-328.18284378,0.00019178,2]
[339346644,1727457047200,-500.0,0.00019178,2]
[339346646,1727457047209,-500.0,0.00019178,2]
[339346648,1727457047219,-505.47306469,0.00019178,2]
[339346650,1727457047228,-500.0,0.00019178,2]
[339346653,1727457047237,-500.0,0.00019178,2]
[339346663,1727457047330,-500.0,0.00019178,2]
[339346665,1727457047340,-500.10512366,0.00019178,2]
[339346667,1727457047349,-500.0,0.00019178,2]
[339346669,1727457047358,-500.0,0.00019178,2]
[339346671,1727457047367,-500.0,0.00019178,2]
[339346673,1727457047377,-500.0,0.00019178,2]
[339346675,1727457047386,-500.0,0.00019178,2]
[339346677,1727457047395,-500.0,0.00019178,2]
[339346679,1727457047404,-501.46636451,0.00019178,2]
[339346681,1727457047413,-505.41265198,0.00019178,2]
[339346683,1727457047422,-500.0,0.00019178,2]
[339346685,1727457047431,-516.75842938,0.00019178,2]
[339346687,1727457047440,-500.0,0.00019178,2]
[339346689,1727457047449,-500.0,0.00019178,2]
[339346691,1727457047458,-500.0,0.00019178,2]
[339346693,1727457047468,-500.0,0.00019178,2]
[339346695,1727457047477,-500.0,0.00019178,2]
[339346697,1727457047486,-500.0,0.00019178,2]
[339346699,1727457047496,-548.71629245,0.00019178,2]
[339346701,1727457047505,-500.0,0.00019178,2]
[339346703,1727457047514,-500.0,0.00019178,2]
[339346705,1727457047523,-200.0,0.00019178,2]
[339346707,1727457047532,-264.32169824,0.00019178,2]
[339346709,1727457047541,-500.0,0.00019178,2]
[339346711,1727457047551,-200.0,0.00019178,2]
[339346713,1727457047560,-500.0,0.00019178,2]
[339346715,1727457047569,-500.0,0.00019178,2]
[339346717,1727457047581,-500.0,0.00019178,2]
[339346719,1727457047590,-500.0,0.00019178,2]
[339346721,1727457047600,-500.0,0.00019178,2]
[339346723,1727457047609,-500.0,0.00019178,2]
[339346725,1727457047619,-500.0,0.00019178,2]
[339346727,1727457047628,-501.09186147,0.00019178,2]
[339346729,1727457047637,-705.99,0.00019178,2]
[339346731,1727457047646,-500.0,0.00019178,2]
[339346733,1727457047657,-1262.342268,0.00019178,2]
[339346735,1727457047666,-1262.342268,0.00019178,2]
[339346737,1727457047676,-1262.342268,0.00019178,2]
[339346739,1727457047685,-500.0,0.00019178,2]
[339346741,1727457047694,-500.0,0.00019178,2]
[339346743,1727457047704,-500.0,0.00019178,2]
[339346745,1727457047713,-1262.342268,0.00019178,2]
[339346747,1727457047722,-1262.342268,0.00019178,2]
[339346749,1727457047731,-1262.342268,0.00019178,2]
[339346751,1727457047741,-500.0,0.00019178,2]
[339346753,1727457047750,-151.0,0.00019178,2]
[339346755,1727457047760,-151.0,0.00019178,2]
[339346757,1727457047769,-151.0,0.00019178,2]
[339346759,1727457047778,-252.810913,0.00019178,2]
[339346761,1727457047787,-500.0,0.00019178,2]
[339346763,1727457047797,-500.92255171,0.00019178,2]
[339346765,1727457047806,-500.0,0.00019178,2]
[339346767,1727457047817,-500.0,0.00019178,2]
[339346769,1727457047827,-503.80014309,0.00019178,2]
[339346771,1727457047836,-500.0,0.00019178,2]
[339346773,1727457047846,-500.0,0.00019178,2]
[339346775,1727457047855,-501.63113708,0.00019178,2]
[339346777,1727457047865,-500.0,0.00019178,2]
[339346780,1727457047876,-500.0,0.00019178,2]
[339346782,1727457047885,-500.0,0.00019178,2]
[339346784,1727457047894,-501.95821522,0.00019178,2]
[339346786,1727457047904,-500.0,0.00019178,2]
[339346788,1727457047913,-500.0,0.00019178,2]
[339346790,1727457047923,-500.0,0.00019178,2]
[339346792,1727457047932,-500.0,0.00019178,2]
[339346794,1727457047941,-500.0,0.00019178,2]
[339346796,1727457047951,-516.14742488,0.00019178,2]
[339346798,1727457047961,-500.0,0.00019178,2]
[339346800,1727457047971,-365.17829871,0.00019178,2]
[339346802,1727457047980,-500.0,0.00019178,2]
[339346804,1727457047989,-500.0,0.00019178,2]
[339346806,1727457047998,-500.0,0.00019178,2]
[339346808,1727457048008,-500.0,0.00019178,2]
[339346810,1727457048018,-500.0,0.00019178,2]
[339346812,1727457048027,-317.85801977,0.00019178,2]
[339346814,1727457048037,-500.0,0.00019178,2]
[339346816,1727457048046,-500.0,0.00019178,2]
[339346818,1727457048056,-534.031739,0.00019178,2]
[339346820,1727457048065,-534.031739,0.00019178,2]
[339346822,1727457048074,-534.031739,0.00019178,2]
[339346824,1727457048083,-806.08,0.00019178,2]
[339346826,1727457048093,-500.0,0.00019178,2]
[339346828,1727457048102,-500.0,0.00019178,2]
[339346830,1727457048111,-500.0,0.00019178,2]
[339346832,1727457048120,-534.031739,0.00019178,2]
[339346834,1727457048130,-534.031739,0.00019178,2]
[339346836,1727457048139,-534.031733,0.00019178,2]
[339346838,1727457048148,-500.0,0.00019178,2]
[339346840,1727457048157,-500.0,0.00019178,2]
[339346842,1727457048166,-500.0,0.00019178,2]
[339346844,1727457048176,-500.0,0.00019178,2]
[339346846,1727457048185,-500.0,0.00019178,2]
[339346848,1727457048194,-500.0,0.00019178,2]
[339346850,1727457048203,-500.0,0.00019178,2]
[339346852,1727457048213,-500.0,0.00019178,2]
[339346854,1727457048222,-500.0,0.00019178,2]
[339346856,1727457048231,-500.0,0.00019178,2]
[339346858,1727457048240,-500.0,0.00019178,2]
[339346860,1727457048249,-1000.0,0.00019178,2]
[339346862,1727457048259,-513.28879907,0.00019178,2]
[339346864,1727457048268,-500.0,0.00019178,2]
[339346866,1727457048277,-500.0,0.00019178,2]
[339346868,1727457048286,-295.56372211,0.00019178,2]
[339346870,1727457048296,-502.17802652,0.00019178,2]
[339346871,1727457048305,-504.301689,0.00019178,2]
[339346873,1727457048314,-500.0,0.00019178,2]
[339346875,1727457048323,-500.0,0.00019178,2]
[339346877,1727457048332,-500.0,0.00019178,2]
[339346879,1727457048342,-500.0,0.00019178,2]
[339346881,1727457048351,-500.0,0.00019178,2]
[339346883,1727457048360,-530.13078266,0.00019178,2]
[339346885,1727457048369,-507.75875498,0.00019178,2]
[339346887,1727457048378,-500.0,0.00019178,2]
[339346889,1727457048387,-500.0,0.00019178,2]
[339346891,1727457048396,-503.00704642,0.00019178,2]
[339346893,1727457048406,-500.0,0.00019178,2]
[339346895,1727457048415,-507.57481586,0.00019178,2]
[339346897,1727457048424,-517.31186304,0.00019178,2]
[339346899,1727457048433,-500.0,0.00019178,2]
[339346902,1727457048443,-500.0,0.00019178,2]
[339346903,1727457048451,-366.158211,0.00019178,2]
[339346906,1727457048461,-366.158211,0.00019178,2]
[339346907,1727457048470,-166.13061778,0.00019178,2]
[339346910,1727457048479,-517.0510758,0.00019178,2]
[339346911,1727457048488,-366.158211,0.00019178,2]
[339346914,1727457048498,-366.158211,0.00019178,2]
[339346916,1727457048507,-500.0,0.00019178,2]
[339346918,1727457048516,-366.158211,0.00019178,2]
[339346920,1727457048526,-366.158211,0.00019178,2]
[339346922,1727457048535,-366.158211,0.00019178,2]
[339346924,1727457048544,-366.158205,0.00019178,2]
[339346926,1727457048553,-507.21,0.00019178,2]
[339346928,1727457048562,-503.26947421,0.00019178,2]
[339346930,1727457048575,-500.0,0.00019178,2]
[339346932,1727457048585,-500.0,0.00019178,2]
[339346934,1727457048594,-500.0,0.00019178,2]
[339346936,1727457048603,-508.23475484,0.00019178,2]
[339346938,1727457048613,-500.0,0.00019178,2]
[339346940,1727457048622,-500.0,0.00019178,2]
[339346942,1727457048631,-506.17528528,0.00019178,2]
[339346944,1727457048641,-936.89,0.00019178,2]
[339346945,1727457048650,-490.0,0.00019178,2]
[339346947,1727457048661,-838.66,0.00019178,2]
[339346949,1727457048672,-500.0,0.00019178,2]
[339346952,1727457048682,-937.638017,0.00019178,2]
[339346954,1727457048691,-937.638017,0.00019178,2]
[339346956,1727457048700,-500.0,0.00019178,2]
[339346958,1727457048710,-937.638017,0.00019178,2]
[339346960,1727457048720,-937.638017,0.00019178,2]
[339346962,1727457048729,-500.0,0.00019178,2]
[339346964,1727457048738,-500.0,0.00019178,2]
[339346966,1727457048747,-937.638017,0.00019178,2]
[339346968,1727457048757,-937.638017,0.00019178,2]
[339346970,1727457048766,-937.638017,0.00019178,2]
[339346972,1727457048775,-500.0,0.00019178,2]
[339346974,1727457048784,-937.638009,0.00019178,2]
[339346976,1727457048793,-500.0,0.00019178,2]
[339346978,1727457048802,-500.0,0.00019178,2]
[339346980,1727457048811,-472.35343011,0.00019178,2]
[339346981,1727457048821,-500.0,0.00019178,2]
[339346982,1727457048831,-500.0,0.00019178,2]
[339346983,1727457048840,-399.018449,0.00019178,2]
[339346984,1727457048849,-500.0,0.00019178,2]
[339346985,1727457048858,-399.018455,0.00019178,2]
[339346987,1727457048868,-1231.09,0.00019178,2]
[339346989,1727457048877,-500.0,0.00019178,2]
[339346991,1727457048886,-506.78801205,0.00019178,2]
[339346993,1727457048896,-500.0,0.00019178,2]
[339346995,1727457048906,-550.71981979,0.00019178,2]
[339346997,1727457048915,-506.5671775,0.00019178,2]
[339346999,1727457048924,-291.00638307,0.00019178,2]
[339347001,1727457048935,-558.81008031,0.00019178,2]
[339347003,1727457048944,-505.23754177,0.00019178,2]
[339347005,1727457048954,-158.616725,0.00019178,2]
[339347007,1727457048963,-158.616725,0.00019178,2]
[339347009,1727457048972,-500.0,0.00019178,2]
[339347011,1727457048980,-503.52977667,0.00019178,2]
[339347013,1727457048990,-158.616725,0.00019178,2]
[339347015,1727457049000,-158.616717,0.00019178,2]
[339347018,1727457049011,-500.0,0.00019178,2]
[339347020,1727457049020,-150.0,0.00019178,2]
[339347022,1727457049029,-503.73732409,0.00019178,2]
[339347024,1727457049039,-500.0,0.00019178,2]
[339347026,1727457049049,-500.0,0.00019178,2]
[339347028,1727457049059,-500.0,0.00019178,2]
[339347039,1727457049152,-500.0,0.00019178,2]
[339347041,1727457049162,-500.0,0.00019178,2]
[339347043,1727457049173,-500.0,0.00019178,2]
[339347045,1727457049182,-504.11027069,0.00019178,2]
[339347047,1727457049192,-500.0,0.00019178,2]
[339347049,1727457049203,-500.0,0.00019178,2]
[339347051,1727457049213,-543.31043458,0.00019178,2]
[339347053,1727457049223,-500.0,0.00019178,2]
[339347055,1727457049233,-500.0,0.00019178,2]
[339347057,1727457049242,-444.85133149,0.00019178,2]
[339347059,1727457049253,-491.473115,0.00019178,2]
[339347061,1727457049263,-491.473115,0.00019178,2]
[339347063,1727457049273,-500.0,0.00019178,2]
[339347065,1727457049282,-9959.86,0.00019178,2]
[339347067,1727457049291,-504.60034359,0.00019178,2]
[339347069,1727457049300,-491.473115,0.00019178,2]
[339347071,1727457049310,-500.0,0.00019178,2]
[339347073,1727457049320,-491.473122,0.00019178,2]
[339347075,1727457049330,-500.0,0.00019178,2]
[339347077,1727457049340,-500.0,0.00019178,2]
[339347079,1727457049350,-500.0,0.00019178,2]
[339347081,1727457049359,-500.0,0.00019178,2]
[339347083,1727457049369,-500.0,0.00019178,2]
[339347085,1727457049378,-510.23012474,0.00019178,2]
[339347087,1727457049388,-347.447032,0.00019178,2]
[339347089,1727457049398,-347.447032,0.00019178,2]
[339347091,1727457049408,-347.447032,0.00019178,2]
[339347093,1727457049418,-500.0,0.00019178,2]
[339347095,1727457049428,-1966.71,0.00019178,2]
[339347097,1727457049437,-500.0,0.00019178,2]
[339347099,1727457049447,-347.447032,0.00019178,2]
[339347101,1727457049456,-500.0,0.00019178,2]
[339347104,1727457049466,-347.447032,0.00019178,2]
[339347106,1727457049475,-347.447039,0.00019178,2]
[339347108,1727457049485,-500.0,0.00019178,2]
[339347110,1727457049494,-500.0,0.00019178,2]
[339347112,1727457049503,-500.0,0.00019178,2]
[339347114,1727457049512,-502.62246958,0.00019178,2]
[339347116,1727457049521,-368.64450648,0.00019178,2]
[339347118,1727457049531,-500.0,0.00019178,2]
[339347119,1727457049540,-500.0,0.00019178,2]
[339347122,1727457049549,-359.65120005,0.00019178,2]
[339347124,1727457049559,-500.0,0.00019178,2]
[339347125,1727457049569,-531.08333799,0.00019178,2]
[339347128,1727457049582,-177.15040229,0.00019178,2]
[339347130,1727457049591,-500.0,0.00019178,2]
[339347132,1727457049600,-500.0,0.00019178,2]
[339347134,1727457049610,-500.0,0.00019178,2]
[339347136,1727457049620,-500.0,0.00019178,2]
[339347138,1727457049630,-505.35540139,0.00019178,2]
[339347140,1727457049639,-500.0,0.00019178,2]
[339347141,1727457049648,-554.31378775,0.00019178,2]
[339347143,1727457049658,-406.8697545,0.00019178,2]
[339347145,1727457049667,-505.41382347,0.00019178,2]
[339347147,1727457049677,-500.0,0.00019178,2]
[339347150,1727457049686,-500.0,0.00019178,2]
[339347152,1727457049696,-510.19479574,0.00019178,2]
[339347154,1727457049706,-500.0,0.00019178,2]
[339347156,1727457049715,-500.0,0.00019178,2]
[339347158,1727457049725,-500.0,0.00019178,2]
[339347160,1727457049736,-500.0,0.00019178,2]
[339347161,1727457049752,-500.0,0.00019178,2]
[339347163,1727457049761,-500.0,0.00019178,2]
[339347165,1727457049770,-522.83889569,0.00019178,2]
[339347168,1727457049779,-371.503728,0.00019178,2]
[339347170,1727457049792,-500.0,0.00019178,2]
[339347172,1727457049801,-300.25769185,0.00019178,2]
[339347174,1727457049810,-371.503737,0.00019178,2]
[339347176,1727457049819,-500.0,0.00019178,2]
[339347177,1727457049832,-500.0,0.00019178,2]
[339347179,1727457049841,-508.86443732,0.00019178,2]
[339347181,1727457049850,-500.0,0.00019178,2]
[339347183,1727457049859,-500.0,0.00019178,2]
[339347185,1727457049868,-500.0,0.00019178,2]
[339347187,1727457049878,-503.00449786,0.00019178,2]
[339347190,1727457049888,-500.0,0.00019178,2]
[339347192,1727457049897,-507.78287653,0.00019178,2]
[339347194,1727457049907,-511.32515908,0.00019178,2]
[339347196,1727457049916,-500.0,0.00019178,2]
[339347198,1727457049926,-2396.6,0.00019178,2]
[339347200,1727457049936,-500.0,0.00019178,2]
[339347202,1727457049945,-503.90772533,0.00019178,2]
[339347204,1727457049954,-507.33275191,0.00019178,2]
[339347206,1727457049963,-504.69552132,0.00019178,2]
[339347208,1727457049972,-273.31,0.00019178,2]
[339347210,1727457049981,-500.0,0.00019178,2]
[339347212,1727457049990,-500.0,0.00019178,2]
[339347214,1727457049999,-500.0,0.00019178,2]
[339347216,1727457050008,-568.45217455,0.00019178,2]
[339347218,1727457050017,-500.0,0.00019178,2]
[339347220,1727457050027,-500.0,0.00019178,2]
[339347222,1727457050036,-500.0,0.00019178,2]
[339347224,1727457050047,-259.09,0.00019178,2]
[339347226,1727457050058,-500.0,0.00019178,2]
[339347228,1727457050069,-500.0,0.00019178,2]
[339347231,1727457050079,-500.0,0.00019178,2]
[339347233,1727457050089,-642.9,0.00019178,2]
[339347235,1727457050099,-500.0,0.00019178,2]
[339347237,1727457050109,-151.0,0.00019178,2]
[339347239,1727457050119,-151.0,0.00019178,2]
[339347241,1727457050128,-180.09682917,0.00019178,2]
[339347243,1727457050138,-500.0,0.00019178,2]
[339347245,1727457050147,-404.801962,0.00019178,2]
[339347247,1727457050156,-1092.42,0.00019178,2]
[339347249,1727457050165,-500.0,0.00019178,2]
[339347251,1727457050175,-404.801965,0.00019178,2]
[339347253,1727457050184,-386.74295383,0.00019178,2]
[339347255,1727457050193,-500.0,0.00019178,2]
[339347257,1727457050203,-500.0,0.00019178,2]
[339347259,1727457050212,-500.0,0.00019178,2]
[339347261,1727457050221,-500.5314839,0.00019178,2]
[339347263,1727457050231,-163.629971,0.00019178,2]
[339347265,1727457050241,-177.515468,0.00019178,2]
[339347267,1727457050251,-150.0,0.00019205,2]
[339347269,1727457050260,-582.0,0.00019205,2]
[339347271,1727457050268,-153.0,0.0001926,2]
[339347273,1727457050278,-153.0,0.0001926,2]
[339347275,1727457050287,-153.0,0.0001926,2]
[339347277,1727457050296,-153.0,0.0001926,2]
[339347279,1727457050306,-153.0,0.0001926,2]
[339347281,1727457050315,-153.0,0.0001926,2]
[339347283,1727457050324,-309.1031882,0.0001926,2]
[339347285,1727457050333,-153.0,0.0001926,2]
[339347287,1727457050343,-153.0,0.0001926,2]
[339347289,1727457050352,-153.0,0.0001926,2]
[339347291,1727457050361,-153.0,0.0001926,2]
[339347294,1727457050371,-153.0,0.0001926,2]
[339347296,1727457050380,-347.030453,0.00019409,2]
[339347298,1727457050389,-347.030449,0.00019409,2]
[339347300,1727457050399,-160.0,0.00019451,2]
[339347302,1727457050407,-151.0,0.00019452,2]
[339347304,1727457050417,-158.142389,0.00019452,2]
[339347306,1727457050426,-151.0,0.00019452,2]
[339347308,1727457050435,-151.0,0.00019452,2]
[339347310,1727457050445,-157.766151,0.00019452,2]
[339347312,1727457050454,-265.4086,0.00019452,2]
[339347314,1727457050463,-265.4086,0.00019452,2]
[339347316,1727457050473,-151.0,0.00019452,2]
[339347318,1727457050482,-156.808377,0.00019452,2]
[339347320,1727457050491,-151.0,0.00019452,2]
[339347322,1727457050500,-157.199082,0.00019452,2]
[339347324,1727457050509,-157.199082,0.00019452,2]
[339347326,1727457050518,-288.414808,0.00019452,2]
[339347328,1727457050527,-288.414808,0.00019452,2]
[339347330,1727457050537,-151.0,0.00019452,2]
[339347332,1727457050546,-1492.419317,0.00019452,2]
[339347334,1727457050555,-1492.419317,0.00019452,2]
[339347336,1727457050563,-355.168131,0.00019452,2]
[339347338,1727457050575,-355.168131,0.00019452,2]
[339347340,1727457050585,-151.0,0.00019452,2]
[339347342,1727457050594,-151.0,0.00019452,2]
[339347344,1727457050603,-151.0,0.00019452,2]
[339347346,1727457050613,-254.531945,0.00019452,2]
[339347348,1727457050622,-254.531945,0.00019452,2]
[339347350,1727457050631,-151.0,0.00019452,2]
[339347352,1727457050641,-291.985378,0.00019452,2]
[339347354,1727457050651,-291.985378,0.00019452,2]
[339347356,1727457050660,-308.103314,0.00019452,2]
[339347358,1727457050669,-308.103314,0.00019452,2]
[339347360,1727457050679,-500.0,0.00019452,2]
[339347362,1727457050688,-268.343585,0.00019452,2]
[339347364,1727457050697,-151.0,0.00019452,2]
[339347366,1727457050706,-268.343585,0.00019452,2]
[339347368,1727457050716,-500.0,0.00019452,2]
[339347370,1727457050725,-500.0,0.00019452,2]
[339347372,1727457050736,-525.11117407,0.00019452,2]
[339347374,1727457050756,-355.65019265,0.00019452,2]
[339347376,1727457050765,-528.32,0.00019452,2]
[339347378,1727457050775,-790.940848,0.00019452,2]
[339347380,1727457050784,-790.940848,0.00019452,2]
[339347390,1727457050871,-511.67284037,0.00019452,2]
[339347392,1727457050880,-500.0,0.00019452,2]
[339347394,1727457050889,-657.03,0.00019452,2]
[339347396,1727457050898,-502.2540826,0.00019452,2]
[339347398,1727457050907,-841.15,0.00019452,2]
[339347400,1727457050917,-500.0,0.00019452,2]
[339347402,1727457050926,-252.56699006,0.00019452,2]
[339347420,1727457051089,-332.16300994,0.00019452,2]
[339347423,1727457051099,-504.0,0.00019452,2]
[339347425,1727457051108,-500.0,0.00019452,2]
[339347427,1727457051118,-500.0,0.00019452,2]
[339347429,1727457051128,-151.0,0.00019452,2]
[339347431,1727457051138,-720.84,0.00019452,2]
[339347433,1727457051148,-500.0,0.00019452,2]
[339347435,1727457051157,-500.0,0.00019452,2]
[339347437,1727457051167,-500.0,0.00019452,2]
[339347439,1727457051176,-500.0,0.00019452,2]
[339347441,1727457051185,-503.08683379,0.00019452,2]
[339347443,1727457051195,-159.77258354,0.00019452,2]
[339347445,1727457051210,-340.22741646,0.00019452,2]
[339347447,1727457051221,-500.0,0.00019452,2]
[339347449,1727457051231,-500.0,0.00019452,2]
[339347451,1727457051241,-496.85831799,0.00019452,2]
[339347453,1727457051251,-200.0,0.00019452,2]
[339347455,1727457051261,-502.49725659,0.00019452,2]
[339347457,1727457051270,-530.24686755,0.00019452,2]
[339347460,1727457051280,-705.99,0.00019452,2]
[339347462,1727457051290,-1262.342268,0.00019452,2]
[339347464,1727457051300,-482.37469278,0.00019452,2]
[339347466,1727457051310,-500.0,0.00019452,2]
[339347468,1727457051319,-1262.342267,0.00019452,2]
[339347470,1727457051328,-500.0,0.00019452,2]
[339347472,1727457051337,-500.0,0.00019452,2]
[339347474,1727457051347,-500.0,0.00019452,2]
[339347476,1727457051356,-500.29800051,0.00019452,2]
[339347478,1727457051365,-806.08,0.00019452,2]
[339347480,1727457051375,-500.0,0.00019452,2]
[339347482,1727457051384,-500.0,0.00019452,2]
[339347484,1727457051394,-507.54444342,0.00019452,2]
[339347485,1727457051403,-500.2322327,0.00019452,2]
[339347486,1727457051412,-319.21002844,0.00019452,2]
[339347487,1727457051421,-500.0,0.00019452,2]
[339347488,1727457051430,-500.0,0.00019452,2]
[339347489,1727457051438,-500.0,0.00019452,2]
[339347490,1727457051447,-500.0,0.00019452,2]
[339347491,1727457051457,-936.89,0.00019452,2]